fUST/lending_fUST_20240109
["ID","MTS","AMOUNT","RATE_DAILY","PERIOD"]
[310816757,1704739838901,-300.0,0.000351,18]
[310816758,1704739838910,-6451.82354929,0.00035128,4]
[310816759,1704739838919,-22795.1216735,0.00035129,4]
[310816760,1704739838928,-361.0,0.00035452,2]
[310816761,1704739838938,-154.89157588,0.00035497,4]
[310816762,1704739838947,-154.86062544,0.00035497,4]
[310816763,1704739838956,-260.67846744,0.00035498,4]
[310816764,1704739838966,-2292.16683106,0.00035515,4]
[310816765,1704739838975,-354.90185916,0.00035515,4]
[310816766,1704739838985,-175.03202453,0.00035515,4]
[310816767,1704739838994,-279.29652652,0.00035515,7]
[310816768,1704739839004,-213.1638757,0.00035515,2]
[310816769,1704739839013,-465.49421086,0.00035515,2]
[310816770,1704739839022,-49417.32939677,0.00035516,2]
[310816771,1704739839033,-27320.96454757,0.00035516,2]
[310816772,1704739839047,-178377.15237994,0.00035516,2]
[310816773,1704739839058,-9711.70381341,0.00035516,2]
[310816774,1704739839068,-11172.84986231,0.00035516,2]
[310816775,1704739839077,-2510.26228092,0.00035613,4]
[310816776,1704739839086,-154.90705577,0.00035613,4]
[310816777,1704739839095,-1112.5936255,0.00035614,4]
[310816778,1704739839104,-1343.22985178,0.00035615,4]
[310816779,1704739839113,-4517.47725397,0.00035615,14]
[310816780,1704739839125,-873.18963724,0.00035615,14]
[310816934,1704739841872,-519.28499969,0.00035615,14]
[310816935,1704739841929,-22407.03359669,0.00035615,14]
[310816936,1704739841941,-152.10079678,0.00035615,7]
[310816937,1704739841952,-246.70103047,0.00035616,3]
[310816938,1704739841962,-1710.49002873,0.00035616,4]
[310816939,1704739841972,-409.60704958,0.00035616,2]
[310816940,1704739841982,-500.0,0.00035616,2]
[310816941,1704739841992,-500.0,0.00035616,2]
[310816942,1704739842002,-500.0,0.00035616,2]
[310816943,1704739842011,-500.0,0.00035616,2]
[310816944,1704739842021,-500.0,0.00035616,2]
[310816945,1704739842031,-500.0,0.00035616,2]
[310816946,1704739842042,-62.34992687,0.00035616,2]
[310816947,1704739842056,-437.65007313,0.00035616,2]
[310816948,1704739842066,-368.57589035,0.00035616,2]
[310816949,1704739842077,-500.0,0.00035616,2]
[310816950,1704739842087,-500.0,0.00035616,2]
[310816951,1704739842097,-500.0,0.00035616,2]
[310816952,1704739842107,-545.35299882,0.00035616,2]
[310816953,1704739842117,-500.0,0.00035616,2]
[310816954,1704739842128,-585.78368002,0.00035616,4]
[310816955,1704739842147,-500.0,0.00035616,2]
[310816956,1704739842166,-396.29967513,0.00035616,2]
[310816957,1704739842187,-500.0,0.00035616,2]
[310816958,1704739842206,-500.0,0.00035616,2]
[310816959,1704739842217,-500.0,0.00035616,2]
[310816960,1704739842227,-500.0,0.00035616,2]
[310816961,1704739842237,-500.0,0.00035616,2]
[310816962,1704739842247,-42.52241153,0.00035616,2]
[310816963,1704739842260,-499.95383034,0.00035616,2]
[310816964,1704739842271,-500.0,0.00035616,2]
[310816965,1704739842282,-890.96,0.00035616,2]
[310816966,1704739842295,-500.0,0.00035616,2]
[310816968,1704739842309,-500.0,0.00035616,2]
[310816969,1704739842321,-500.0,0.00035616,2]
[310816971,1704739842332,-500.0,0.00035616,2]
[310816972,1704739842344,-500.0,0.00035616,2]
[310816974,1704739842356,-602.93918056,0.00035616,2]
[310816975,1704739842366,-304.98909376,0.00035616,2]
[310816976,1704739842375,-500.0,0.00035616,2]
[310816978,1704739842389,-500.0,0.00035616,2]
[310816980,1704739842399,-500.0,0.00035616,2]
[310816981,1704739842408,-500.0,0.00035616,2]
[310816982,1704739842418,-264.91785626,0.00035616,2]
[310816984,1704739842427,-1326.31,0.00035616,2]
[310816986,1704739842437,-992.19,0.00035616,2]
[310816989,1704739842447,-500.0,0.00035616,2]
[310816991,1704739842457,-500.0,0.00035616,2]
[310816993,1704739842466,-500.0,0.00035616,2]
[310816995,1704739842476,-500.0,0.00035616,2]
[310816997,1704739842489,-500.0,0.00035616,2]
[310816999,1704739842498,-500.0,0.00035616,2]
[310817001,1704739842507,-500.0,0.00035616,2]
[310817003,1704739842518,-526.83,0.00035616,2]
[310817004,1704739842528,-500.0,0.00035616,2]
[310817006,1704739842538,-500.0,0.00035616,2]
[310817008,1704739842552,-500.0,0.00035616,2]
[310817010,1704739842561,-500.0,0.00035616,2]
[310817012,1704739842571,-620.73,0.00035616,2]
[310817015,1704739842581,-1669.6,0.00035616,2]
[310817017,1704739842593,-500.0,0.00035616,2]
[310817019,1704739842604,-500.0,0.00035616,2]
[310817021,1704739842616,-500.0,0.00035616,2]
[310817023,1704739842627,-500.0,0.00035616,2]
[310817024,1704739842638,-282.83869355,0.00035616,2]
[310817026,1704739842648,-500.0,0.00035616,2]
[310817028,1704739842659,-500.0,0.00035616,2]
[310817030,1704739842669,-649.31451728,0.00035616,4]
[310817033,1704739842679,-500.0,0.00035616,2]
[310817034,1704739842689,-500.0,0.00035616,2]
[310817036,1704739842699,-162.59639863,0.00035616,2]
[310817486,1704739845805,-372.77255559,0.00035615,4]
[310817488,1704739845817,-866.56354202,0.00035615,4]
[310817490,1704739845827,-223.0,0.00035616,2]
[310817492,1704739845838,-337.40360137,0.00035616,2]
[310817494,1704739845848,-981.55,0.00035616,2]
[310817496,1704739845857,-500.0,0.00035616,2]
[310817498,1704739845866,-500.0,0.00035616,2]
[310817500,1704739845876,-500.0,0.00035616,2]
[310817502,1704739845885,-500.0,0.00035616,2]
[310817505,1704739845894,-500.0,0.00035616,2]
[310817508,1704739845904,-500.0,0.00035616,2]
[310817511,1704739845913,-500.0,0.00035616,2]
[310817513,1704739845922,-500.0,0.00035616,2]
[310817516,1704739845932,-500.0,0.00035616,2]
[310817519,1704739845941,-500.0,0.00035616,2]
[310817522,1704739845950,-500.0,0.00035616,2]
[310817524,1704739845959,-500.0,0.00035616,2]
[310817526,1704739845968,-500.0,0.00035616,2]
[310817528,1704739845977,-1111.1,0.00035616,2]
[310817531,1704739845987,-500.0,0.00035616,2]
[310817534,1704739845996,-500.0,0.00035616,2]
[310817537,1704739846006,-524.26,0.00035616,2]
[310817540,1704739846015,-500.0,0.00035616,2]
[310817543,1704739846024,-1126.03,0.00035616,2]
[310817546,1704739846033,-500.0,0.00035616,2]
[310817549,1704739846043,-217.93251052,0.00035616,2]
[310817552,1704739846053,-500.0,0.00035616,2]
[310817555,1704739846061,-480.22172104,0.00035616,2]
[310817558,1704739846070,-500.0,0.00035616,2]
[310817561,1704739846079,-2282.26,0.00035616,2]
[310817564,1704739846088,-500.0,0.00035616,2]
[310817568,1704739846098,-1900.43,0.00035616,2]
[310817572,1704739846108,-500.0,0.00035616,2]
[310817577,1704739846117,-500.0,0.00035616,2]
[310817581,1704739846126,-500.0,0.00035616,2]
[310817585,1704739846135,-761.82,0.00035616,2]
[310817589,1704739846145,-500.0,0.00035616,2]
[310817593,1704739846155,-635.0,0.00035616,2]
[310817597,1704739846164,-500.0,0.00035616,2]
[310817601,1704739846174,-1692.24,0.00035616,2]
[310817605,1704739846184,-4647.83,0.00035616,2]
[310817608,1704739846194,-2328.09,0.00035616,2]
[310817611,1704739846204,-500.0,0.00035616,2]
[310817614,1704739846214,-500.0,0.00035616,2]
[310817617,1704739846223,-500.0,0.00035616,2]
[310817620,1704739846232,-642.45,0.00035616,2]
[310817623,1704739846244,-349.29335926,0.00035616,2]
[310817626,1704739846254,-500.0,0.00035616,2]
[310817629,1704739846263,-500.0,0.00035616,2]
[310817633,1704739846272,-500.0,0.00035616,2]
[310817637,1704739846281,-500.0,0.00035616,2]
[310817641,1704739846290,-35396.47,0.00035616,2]
[310817645,1704739846303,-5494.46,0.00035616,2]
[310817649,1704739846314,-1235.08,0.00035616,2]
[310817653,1704739846323,-500.0,0.00035616,2]
[310817656,1704739846333,-1000.0,0.00035616,2]
[310817660,1704739846342,-500.0,0.00035616,2]
[310817664,1704739846352,-500.0,0.00035616,2]
[310817668,1704739846366,-500.0,0.00035616,2]
[310817672,1704739846375,-500.0,0.00035616,2]
[310817676,1704739846385,-500.0,0.00035616,2]
[310817680,1704739846394,-12506.22,0.00035616,2]
[310817684,1704739846404,-500.0,0.00035616,2]
[310817688,1704739846413,-500.0,0.00035616,2]
[310817692,1704739846422,-567.56680786,0.00035616,2]
[310817695,1704739846431,-1293.57,0.00035616,2]
[310817698,1704739846440,-500.0,0.00035616,2]
[310817702,1704739846450,-500.0,0.00035616,2]
[310817705,1704739846459,-500.0,0.00035616,2]
[310817708,1704739846468,-500.0,0.00035616,2]
[310817710,1704739846479,-500.0,0.00035616,2]
[310817712,1704739846490,-500.0,0.00035616,2]
[310817715,1704739846498,-500.0,0.00035616,5]
[310817734,1704739846647,-1762.17,0.00035616,2]
[310817736,1704739846657,-2019.87,0.00035616,2]
[310817738,1704739846667,-500.0,0.00035616,2]
[310817740,1704739846676,-500.0,0.00035616,2]
[310817742,1704739846686,-500.0,0.00035616,2]
[310817744,1704739846696,-584.23755453,0.00035616,2]
[310817746,1704739846705,-500.0,0.00035616,2]
[310817748,1704739846715,-1192.31,0.00035616,2]
[310817750,1704739846724,-562.66,0.00035616,2]
[310817752,1704739846733,-2394.37,0.00035616,2]
[310817754,1704739846742,-500.0,0.00035616,2]
[310817757,1704739846753,-500.0,0.00035616,2]
[310817759,1704739846763,-500.0,0.00035616,2]
[310817761,1704739846772,-500.0,0.00035616,2]
[310817762,1704739846782,-500.0,0.00035616,2]
[310817764,1704739846790,-500.0,0.00035616,2]
[310817766,1704739846803,-500.0,0.00035616,2]
[310817768,1704739846813,-500.0,0.00035616,2]
[310817770,1704739846822,-500.0,0.00035616,2]
[310817772,1704739846831,-500.0,0.00035616,2]
[310817776,1704739846841,-500.0,0.00035616,2]
[310817779,1704739846850,-2239.87,0.00035616,2]
[310817782,1704739846859,-1020.72,0.00035616,2]
[310817785,1704739846869,-803.6,0.00035616,2]
[310817787,1704739846878,-272.326535,0.00035616,120]
[310817790,1704739846888,-1786.78549848,0.00035798,2]
[310817815,1704739847094,-399.41090036,0.00035515,2]
[310817817,1704739847103,-380.82932867,0.00035515,7]
[310817819,1704739847113,-160.3104772,0.00035515,2]
[310817821,1704739847122,-294.51735073,0.00035515,7]
[310817823,1704739847131,-517.66903922,0.00035515,2]
[310817825,1704739847140,-221.85815967,0.00035515,7]
[310817827,1704739847149,-634.71554779,0.00035515,2]
[310817829,1704739847158,-6199.22,0.00035606,3]
[310817830,1704739847167,-700.0,0.00035615,4]
[310817832,1704739847176,-763.57347352,0.00035798,2]
[310817835,1704739847186,-155.23284584,0.00035888,4]
[310817836,1704739847195,-686.36292418,0.00035888,4]
[310817839,1704739847204,-188.2513951,0.00035888,4]
[310817841,1704739847214,-165.13386565,0.00035888,4]
[310817843,1704739847223,-264.81601131,0.00035888,4]
[310817845,1704739847232,-487.28617803,0.00035888,4]
[310817847,1704739847242,-155.24923478,0.00035888,4]
[310817849,1704739847251,-590.99098966,0.00035888,2]
[310817850,1704739847261,-370.53626376,0.00035888,4]
[310817853,1704739847271,-363.20947054,0.00035888,4]
[310817855,1704739847282,-2443.65664893,0.00035888,4]
[310817857,1704739847291,-469.27046295,0.00035888,2]
[310817858,1704739847303,-285.30351426,0.00035888,4]
[310817860,1704739847313,-3543.17087496,0.00035888,2]
[310817863,1704739847323,-297.66047975,0.00035888,4]
[310817864,1704739847332,-155.77118183,0.00035889,4]
[310817866,1704739847342,-928.45923481,0.00035889,4]
[310817869,1704739847351,-2853.25064215,0.00035889,4]
[310817870,1704739847362,-500.0,0.0003589,2]
[310817872,1704739847371,-500.0,0.0003589,2]
[310817874,1704739847381,-500.0,0.0003589,2]
[310817876,1704739847390,-500.0,0.0003589,2]
[310817879,1704739847399,-500.0,0.0003589,2]
[310817881,1704739847409,-500.0,0.0003589,2]
[310817883,1704739847422,-500.0,0.0003589,2]
[310817885,1704739847431,-500.0,0.0003589,2]
[310817887,1704739847440,-500.0,0.0003589,2]
[310817889,1704739847450,-500.0,0.0003589,2]
[310817891,1704739847459,-500.0,0.0003589,2]
[310817893,1704739847468,-500.0,0.0003589,2]
[310817895,1704739847477,-461.59171881,0.0003589,2]
[310817897,1704739847493,-500.0,0.0003589,2]
[310817899,1704739847502,-500.0,0.0003589,2]
[310817901,1704739847512,-500.0,0.0003589,2]
[310817903,1704739847522,-500.0,0.0003589,2]
[310817905,1704739847532,-890.96,0.0003589,2]
[310817907,1704739847541,-500.0,0.0003589,2]
[310817909,1704739847555,-500.0,0.0003589,2]
[310817911,1704739847564,-500.0,0.0003589,2]
[310817913,1704739847575,-500.0,0.0003589,2]
[310817915,1704739847584,-456.97228023,0.0003589,2]
[310817917,1704739847594,-500.0,0.0003589,2]
[310817919,1704739847604,-500.0,0.0003589,2]
[310817921,1704739847613,-500.0,0.0003589,2]
[310817923,1704739847623,-1326.31,0.0003589,2]
[310817925,1704739847633,-992.19,0.0003589,2]
[310817927,1704739847642,-500.0,0.0003589,2]
[310817929,1704739847652,-500.0,0.0003589,2]
[310817931,1704739847662,-500.0,0.0003589,2]
[310817933,1704739847672,-500.0,0.0003589,2]
[310817935,1704739847680,-500.0,0.0003589,2]
[310817937,1704739847689,-500.0,0.0003589,2]
[310817939,1704739847699,-500.0,0.0003589,2]
[310817941,1704739847708,-526.83,0.0003589,2]
[310817943,1704739847718,-500.0,0.0003589,2]
[310817945,1704739847727,-500.0,0.0003589,2]
[310817947,1704739847737,-500.0,0.0003589,2]
[310817949,1704739847748,-500.0,0.0003589,2]
[310817951,1704739847758,-620.73,0.0003589,2]
[310817953,1704739847770,-1669.6,0.0003589,2]
[310817955,1704739847779,-500.0,0.0003589,2]
[310817957,1704739847788,-500.0,0.0003589,2]
[310817959,1704739847799,-500.0,0.0003589,2]
[310817961,1704739847809,-203.67309071,0.0003589,2]
[310817963,1704739847818,-500.0,0.0003589,2]
[310817965,1704739847828,-500.0,0.0003589,2]
[310817968,1704739847838,-500.0,0.0003589,2]
[310817969,1704739847847,-500.0,0.0003589,2]
[310817971,1704739847857,-500.0,0.0003589,2]
[310817974,1704739847866,-981.55,0.0003589,2]
[310817975,1704739847876,-500.0,0.0003589,2]
[310817978,1704739847885,-412.63715383,0.0003589,2]
[310817980,1704739847894,-500.0,0.0003589,2]
[310817981,1704739847903,-500.0,0.0003589,2]
[310817983,1704739847913,-500.0,0.0003589,2]
[310817986,1704739847922,-500.0,0.0003589,2]
[310817988,1704739847932,-500.0,0.0003589,2]
[310817990,1704739847941,-500.0,0.0003589,2]
[310817992,1704739847950,-500.0,0.0003589,2]
[310817994,1704739847960,-500.0,0.0003589,2]
[310817996,1704739847969,-500.0,0.0003589,2]
[310817998,1704739847979,-500.0,0.0003589,2]
[310818000,1704739847988,-500.0,0.0003589,2]
[310818002,1704739847998,-1111.1,0.0003589,2]
[310818004,1704739848007,-500.0,0.0003589,2]
[310818005,1704739848016,-500.0,0.0003589,2]
[310818007,1704739848025,-524.26,0.0003589,2]
[310818009,1704739848034,-500.0,0.0003589,2]
[310818011,1704739848044,-1126.03,0.0003589,2]
[310818013,1704739848053,-500.0,0.0003589,2]
[310818015,1704739848062,-500.0,0.0003589,2]
[310818017,1704739848071,-500.0,0.0003589,2]
[310818019,1704739848080,-2282.26,0.0003589,2]
[310818021,1704739848090,-500.0,0.0003589,2]
[310818023,1704739848099,-1900.43,0.0003589,2]
[310818025,1704739848109,-500.0,0.0003589,2]
[310818027,1704739848118,-500.0,0.0003589,2]
[310818029,1704739848127,-500.0,0.0003589,2]
[310818031,1704739848137,-761.82,0.0003589,2]
[310818033,1704739848146,-500.0,0.0003589,2]
[310818035,1704739848156,-635.0,0.0003589,2]
[310818037,1704739848165,-500.0,0.0003589,2]
[310818039,1704739848174,-1692.24,0.0003589,2]
[310818041,1704739848183,-4647.83,0.0003589,2]
[310818043,1704739848192,-2328.09,0.0003589,2]
[310818045,1704739848201,-500.0,0.0003589,2]
[310818047,1704739848210,-500.0,0.0003589,2]
[310818049,1704739848219,-500.0,0.0003589,2]
[310818051,1704739848228,-642.45,0.0003589,2]
[310818053,1704739848238,-500.0,0.0003589,2]
[310818055,1704739848248,-500.0,0.0003589,2]
[310818057,1704739848257,-500.0,0.0003589,2]
[310818059,1704739848268,-500.0,0.0003589,2]
[310818061,1704739848278,-35396.47,0.0003589,2]
[310818063,1704739848287,-5494.46,0.0003589,2]
[310818065,1704739848297,-1235.08,0.0003589,2]
[310818067,1704739848308,-500.0,0.0003589,2]
[310818069,1704739848319,-1000.0,0.0003589,2]
[310818071,1704739848328,-500.0,0.0003589,2]
[310818073,1704739848337,-500.0,0.0003589,2]
[310818075,1704739848347,-500.0,0.0003589,2]
[310818077,1704739848356,-500.0,0.0003589,2]
[310818079,1704739848365,-500.0,0.0003589,2]
[310818082,1704739848375,-12506.22,0.0003589,2]
[310818084,1704739848384,-500.0,0.0003589,2]
[310818085,1704739848393,-500.0,0.0003589,2]
[310818088,1704739848404,-1293.57,0.0003589,2]
[310818090,1704739848413,-500.0,0.0003589,2]
[310818091,1704739848422,-500.0,0.0003589,2]
[310818094,1704739848432,-500.0,0.0003589,2]
[310818096,1704739848441,-500.0,0.0003589,2]
[310818097,1704739848451,-500.0,0.0003589,2]
[310818099,1704739848460,-500.0,0.0003589,2]
[310818101,1704739848469,-500.0,0.0003589,5]
[310818103,1704739848480,-1762.17,0.0003589,2]
[310818105,1704739848491,-2019.87,0.0003589,2]
[310818107,1704739848500,-562.64038553,0.0003589,2]
[310818109,1704739848509,-500.0,0.0003589,2]
[310818111,1704739848518,-500.0,0.0003589,2]
[310818113,1704739848528,-500.0,0.0003589,2]
[310818115,1704739848537,-1192.31,0.0003589,2]
[310818117,1704739848550,-562.66,0.0003589,2]
[310818119,1704739848559,-2394.37,0.0003589,2]
[310818122,1704739848570,-500.0,0.0003589,2]
[310818124,1704739848579,-500.0,0.0003589,2]
[310818126,1704739848588,-500.0,0.0003589,2]
[310818128,1704739848598,-500.0,0.0003589,2]
[310818130,1704739848606,-500.0,0.0003589,2]
[310818132,1704739848615,-599.88685531,0.0003589,2]
[310818134,1704739848624,-500.0,0.0003589,2]
[310818136,1704739848633,-500.0,0.0003589,2]
[310818137,1704739848642,-500.0,0.0003589,2]
[310818140,1704739848652,-500.0,0.0003589,2]
[310818141,1704739848661,-500.0,0.0003589,2]
[310818143,1704739848671,-2239.87,0.0003589,2]
[310818146,1704739848681,-1020.72,0.0003589,2]
[310818147,1704739848690,-803.6,0.0003589,2]
[310818150,1704739848700,-230.23731364,0.00036,4]
[310818151,1704739848710,-999.643862,0.00036,7]
[310818154,1704739848720,-200.0,0.000361,8]
[310818155,1704739848730,-2786.45939138,0.00036162,4]
[310818157,1704739848740,-3893.10032845,0.00036162,4]
[310818159,1704739848749,-20065.08105006,0.00036163,4]
[310818161,1704739848759,-743.14554309,0.00036163,4]
[310818163,1704739848768,-500.0,0.00036164,2]
[310818165,1704739848777,-546.37892691,0.00036164,2]
[310818167,1704739848786,-500.0,0.00036164,2]
[310818169,1704739848795,-500.0,0.00036164,2]
[310818171,1704739848805,-500.0,0.00036164,2]
[310818173,1704739848814,-321.78010021,0.00036164,2]
[310818175,1704739848822,-486.81654422,0.00036164,2]
[310818177,1704739848832,-500.0,0.00036164,2]
[310818179,1704739848841,-500.0,0.00036164,2]
[310818181,1704739848850,-500.0,0.00036164,2]
[310818183,1704739848859,-500.0,0.00036164,2]
[310818185,1704739848868,-500.0,0.00036164,2]
[310818186,1704739848878,-500.0,0.00036164,2]
[310818187,1704739848887,-500.0,0.00036164,2]
[310818188,1704739848895,-500.0,0.00036164,2]
[310818189,1704739848904,-500.0,0.00036164,2]
[310818190,1704739848914,-890.96,0.00036164,2]
[310818191,1704739848923,-500.0,0.00036164,2]
[310818192,1704739848932,-500.0,0.00036164,2]
[310818193,1704739848941,-500.0,0.00036164,2]
[310818194,1704739848950,-377.87821107,0.00036164,2]
[310818195,1704739848959,-586.67251986,0.00036164,2]
[310818196,1704739848968,-477.26864391,0.00036164,2]
[310818197,1704739848977,-500.0,0.00036164,2]
[310818198,1704739848986,-1326.31,0.00036164,2]
[310818200,1704739848995,-992.19,0.00036164,2]
[310818202,1704739849004,-500.0,0.00036164,2]
[310818203,1704739849013,-500.0,0.00036164,2]
[310818205,1704739849022,-500.0,0.00036164,2]
[310818207,1704739849031,-500.0,0.00036164,2]
[310818210,1704739849040,-500.0,0.00036164,2]
[310818212,1704739849052,-500.0,0.00036164,2]
[310818213,1704739849061,-500.0,0.00036164,2]
[310818215,1704739849071,-526.83,0.00036164,2]
[310818217,1704739849080,-500.0,0.00036164,2]
[310818219,1704739849089,-212.22805132,0.00036164,2]
[310818221,1704739849098,-500.0,0.00036164,2]
[310818223,1704739849107,-500.0,0.00036164,2]
[310818225,1704739849116,-620.73,0.00036164,2]
[310818227,1704739849125,-1669.6,0.00036164,2]
[310818229,1704739849134,-500.0,0.00036164,2]
[310818231,1704739849143,-500.0,0.00036164,2]
[310818233,1704739849152,-500.0,0.00036164,2]
[310818235,1704739849161,-500.0,0.00036164,2]
[310818237,1704739849170,-500.0,0.00036164,2]
[310818239,1704739849179,-500.0,0.00036164,2]
[310818241,1704739849187,-500.0,0.00036164,2]
[310818243,1704739849196,-500.0,0.00036164,2]
[310818245,1704739849205,-981.55,0.00036164,2]
[310818247,1704739849215,-500.0,0.00036164,2]
[310818249,1704739849225,-500.0,0.00036164,2]
[310818251,1704739849235,-500.0,0.00036164,2]
[310818253,1704739849246,-500.0,0.00036164,2]
[310818255,1704739849256,-519.67950424,0.00036164,2]
[310818257,1704739849266,-500.0,0.00036164,2]
[310818259,1704739849276,-500.0,0.00036164,2]
[310818261,1704739849289,-500.0,0.00036164,2]
[310818263,1704739849302,-500.0,0.00036164,2]
[310818265,1704739849311,-500.0,0.00036164,2]
[310818267,1704739849321,-455.99894904,0.00036164,2]
[310818269,1704739849330,-500.0,0.00036164,2]
[310818271,1704739849339,-1111.1,0.00036164,2]
[310818273,1704739849349,-500.0,0.00036164,2]
[310818285,1704739849462,-500.0,0.00036164,2]
[310818287,1704739849472,-524.26,0.00036164,2]
[310818289,1704739849484,-500.0,0.00036164,2]
[310818291,1704739849494,-1126.03,0.00036164,2]
[310818293,1704739849503,-500.0,0.00036164,2]
[310818295,1704739849512,-500.0,0.00036164,2]
[310818297,1704739849522,-500.0,0.00036164,2]
[310818299,1704739849532,-2282.26,0.00036164,2]
[310818301,1704739849541,-500.0,0.00036164,2]
[310818303,1704739849553,-1900.43,0.00036164,2]
[310818305,1704739849563,-500.0,0.00036164,2]
[310818307,1704739849573,-500.0,0.00036164,2]
[310818309,1704739849582,-500.0,0.00036164,2]
[310818311,1704739849591,-761.82,0.00036164,2]
[310818313,1704739849600,-500.0,0.00036164,2]
[310818315,1704739849609,-635.0,0.00036164,2]
[310818317,1704739849619,-493.03884634,0.00036164,2]
[310818319,1704739849628,-1692.24,0.00036164,2]
[310818321,1704739849637,-4647.83,0.00036164,2]
[310818323,1704739849647,-2328.09,0.00036164,2]
[310818325,1704739849657,-500.0,0.00036164,2]
[310818327,1704739849666,-500.0,0.00036164,2]
[310818329,1704739849675,-500.0,0.00036164,2]
[310818331,1704739849685,-642.45,0.00036164,2]
[310818333,1704739849697,-500.0,0.00036164,2]
[310818335,1704739849707,-500.0,0.00036164,2]
[310818337,1704739849716,-500.0,0.00036164,2]
[310818339,1704739849726,-500.0,0.00036164,2]
[310818341,1704739849736,-35396.47,0.00036164,2]
[310818343,1704739849746,-5494.46,0.00036164,2]
[310818345,1704739849755,-1235.08,0.00036164,2]
[310818346,1704739849764,-500.0,0.00036164,2]
[310818348,1704739849774,-1000.0,0.00036164,2]
[310818350,1704739849783,-500.0,0.00036164,2]
[310818352,1704739849792,-500.0,0.00036164,2]
[310818354,1704739849804,-500.0,0.00036164,2]
[310818356,1704739849813,-500.0,0.00036164,2]
[310818358,1704739849823,-500.0,0.00036164,2]
[310818360,1704739849832,-1750.74034331,0.00036164,2]
[310827844,1704740192631,200.0,0.00023088,7]
[310827845,1704740193377,280.0,0.00025397,7]
[310827846,1704740309992,53144.80706043,0.00025397,7]
[310827924,1704740492337,200.0,0.00021861,7]
[310827925,1704740493068,280.0,0.00024047,7]
[310827931,1704740906868,250.0,0.00017154,2]
[310827932,1704740960090,-260.5008439,0.00018143,2]
[310827933,1704740960110,-508.79855076,0.00018144,2]
[310827934,1704740960130,-395.85954915,0.00018144,2]
[310828077,1704741033911,-2926.57589157,0.00018039,2]
[310828081,1704741033923,-15873.6712433,0.00018039,2]
[310828083,1704741033933,-521.0,0.00018039,2]
[310828085,1704741033942,-1988.77445231,0.0001804,2]
[310828089,1704741033951,-154.8915759,0.0001804,2]
[310828092,1704741033963,-901.30981836,0.0001804,2]
[310828095,1704741033972,-2511.34591178,0.00018041,2]
[310828098,1704741033982,-872.16543446,0.00018041,2]
[310828101,1704741033993,-19652.00978735,0.00018041,2]
[310828104,1704741034003,-1586.54763631,0.00018042,2]
[310828106,1704741034012,-36811.04917865,0.00018042,2]
[310828109,1704741034021,-7861.30134799,0.00018043,2]
[310828113,1704741034030,-829.43452477,0.00018044,2]
[310828116,1704741034043,-745.80576508,0.00018044,2]
[310828119,1704741034052,-164.84804974,0.00018044,2]
[310828122,1704741034061,-860.46618422,0.00018045,2]
[310828125,1704741034070,-245.94314602,0.00018045,2]
[310828128,1704741034079,-271.84681724,0.00018045,2]
[310828131,1704741034088,-758.46828751,0.00018045,2]
[310828133,1704741034097,-575.86520747,0.00018046,2]
[310828315,1704741039285,-860.46618422,0.00018039,2]